Cogmind - Beta 10 X1 @@@ ROGUE MODE // 2020.06.07 @ 20:52:44 Player: Owlsley Result: Destroyed by Combat Programmer with EMDS Performance ------------- Evolutions (9) 4500 Regions Visited (29) 5800 Robots Destroyed (336) 1680 Value Destroyed (16563) 16563 Prototype IDs (42) 840 Alien Tech Used (3) 600 Bonus (15847) 15847 TOTAL SCORE: 45830 Bonus ------- High Alert Combat Kills 2360 Follower Combat Kills 3659 Network Hubs Disabled 200 Aligned with FarCom 300 Met Data Miner 300 Met Zhirov 300 Met Warlord at Base 500 MAIN.C Attacked Warlord 500 Warlord Defense Kill 176 A7 Reached Mainframe 300 Met R17 at Cetus 500 Met Warlord at Research 2000 Met MAIN.C 5000 Hacked MAIN.C 300 Friendly Fire -548 Cogmind --------- Core Integrity 0/1600 Matter 78/300 Energy 100/100 System Corruption 41% Temperature Cool (0) Movement Core (50) Location -1/Command Parts ------- > --- POWER (2) -------- (None) > --- PROPULSION (8) --- (None) > --- UTILITY (11) ----- (None) > --- WEAPON (4) ------- (None) > --- INVENTORY (4) ---- Experimental Matter Compressor (500) Cooled Proton Cannon Advanced Datajack Peak State ------------ > --- POWER ------------ Reinforced Fission Core Cooled Antimatter Reactor > --- PROPULSION ------- Armored Heavy Treads Biometal Heavy Treads Advanced Heavy Siege Treads Advanced Heavy Siege Treads > --- UTILITY ---------- High-capacity Storage Unit High-capacity Storage Unit High-capacity Storage Unit Experimental Targeting Computer Advanced Core Analyzer Stasis Canceller Advanced Focal Shield Experimental Thermal Shield System Mapper Advanced System Shield System Restoration Module > --- WEAPON ----------- Railgun Railgun Railgun Longsword +1 > --- INVENTORY -------- Quantum Reactor Light Quantum Reactor Armored Heavy Treads Improved Heavy Siege Treads Advanced Heavy Siege Treads Advanced Heavy Siege Treads Advanced Heavy Siege Treads Experimental Matter Compressor Advanced Phase Shifter Point Defense Array Sensor Drone Bay Dimensional Node Initializer Transdimensional Reconstructor Quantum Rifle Quantum Rifle Enhanced Quantum Rifle Cooled Proton Cannon Proton Burst Cannon KE Penetrator KE Penetrator Railgun Railgun Fusion Bomb Launcher [Rating: 200] Favorites ----------- Power Reinforced Fission Core Engine Deuterium Engine Power Core Reinforced Fission Core Reactor Vortex Chain Reactor Propulsion Light Treads Treads Light Treads Leg Aluminum Leg Utility High-capacity Storage Unit Device Long-range Terrain Scanner Storage High-capacity Storage Unit Processor Advanced Targeting Computer Hackware Advanced System Shield Protection Advanced Powered Armor Weapon Improved KE Penetrator Energy Gun Gatling Laser Energy Cannon Proton Burst Cannon Ballistic Gun Improved KE Penetrator Ballistic Cannon Hardcell Cannon Launcher Grenade Launcher Special Weapon Remote Datajack Slashing Weapon Longsword +1 Special Melee Weapon Advanced Datajack Build | -11 -10 -10 -10 -9 -8 -7 -7 -7 -7 -6 -6 -6 -6 -6 -6 -5 -5 -5 -5 -4 -4 -4 -4 -4 -3 -3 -2 -1 -1 ------- Run | Scr Mat Min Exi Min Mat Fac Low Low Dat Pro Fac Ext Cet Arc Hub Fac Upp Upp Zhi Pro Fac Upp Upp War Pro Res Res Acc Com Slots Evolved 18 | . . . . . 4 2 . . . . 2 . . . . 2 . . . . 2 . . . . 2 2 2 . Power 1 | . . . . . . . . . . . . . . . . . . . . . . . . . . 1 . . . Propulsion 6 | . . . . . 2 . . . . . . . . . . . . . . . 2 . . . . . . 2 . Utility 9 | . . . . . 2 1 . . . . 2 . . . . 1 . . . . . . . . . 1 2 . . Weapon 2 | . . . . . . 1 . . . . . . . . . 1 . . . . . . . . . . . . . Parts Attached 326 | . 7 5 7 . 10 49 3 . 3 1 6 11 8 2 2 19 12 3 6 10 13 4 12 20 7 36 5 45 20 Power 24 | . . 2 . . 1 4 1 . . . . 2 1 . . 1 1 . 2 . . 1 . 2 . 1 . 4 1 Engine 7 | . . 1 . . 1 4 . . . . . 1 . . . . . . . . . . . . . . . . . Core 9 | . . 1 . . . . 1 . . . . 1 . . . 1 1 . 1 . . 1 . 1 . . . 1 . Reactor 8 | . . . . . . . . . . . . . 1 . . . . . 1 . . . . 1 . 1 . 3 1 Propulsion 66 | . 2 . . . 3 11 . . . . . 5 2 . . . . . 2 4 5 . 5 9 . 5 1 4 8 Treads 66 | . 2 . . . 3 11 . . . . . 5 2 . . . . . 2 4 5 . 5 9 . 5 1 4 8 Leg . | . . . . . . . . . . . . . . . . . . . . . . . . . . . . . . Wheel . | . . . . . . . . . . . . . . . . . . . . . . . . . . . . . . Hover . | . . . . . . . . . . . . . . . . . . . . . . . . . . . . . . Flight . | . . . . . . . . . . . . . . . . . . . . . . . . . . . . . . Utility 97 | . 3 . 2 . 3 11 1 . . . 4 . . 2 . 8 8 1 2 1 2 3 3 4 3 13 4 17 2 Device 55 | . . . . . 1 2 1 . . . 1 . . 1 . 3 7 1 1 1 1 2 3 2 3 6 1 16 2 Storage 12 | . 3 . 2 . 1 4 . . . . . . . . . . . . . . . . . 1 . 1 . . . Processor 5 | . . . . . . . . . . . 1 . . . . . 1 . . . . . . 1 . . 1 1 . Hackware 7 | . . . . . . 2 . . . . 1 . . . . 2 . . . . 1 . . . . 1 . . . Protection 18 | . . . . . 1 3 . . . . 1 . . 1 . 3 . . 1 . . 1 . . . 5 2 . . Artifact . | . . . . . . . . . . . . . . . . . . . . . . . . . . . . . . Weapon 139 | . 2 3 5 . 3 23 1 . 3 1 2 4 5 . 2 10 3 2 . 5 6 . 4 5 4 17 . 20 9 Energy Gun 30 | . . 1 1 . 1 4 . . 1 1 . 1 2 . . 5 . 1 . 1 . . . 1 1 4 . 5 . Energy Cannon 10 | . . . . . . . . . . . . . . . . . . 1 . 1 2 . . . 1 5 . . . Ballistic Gun 62 | . 2 1 2 . 1 13 1 . 2 . . 2 2 . . 3 1 . . 2 2 . 3 1 1 6 . 10 7 Ballistic Cannon 9 | . . . . . . 1 . . . . 1 1 . . 1 . . . . 1 . . . 3 . 1 . . . Launcher 3 | . . 1 1 . . . . . . . . . 1 . . . . . . . . . . . . . . . . Special Weapon 4 | . . . . . . 2 . . . . . . . . . 1 . . . . 1 . . . . . . . . Impact Weapon . | . . . . . . . . . . . . . . . . . . . . . . . . . . . . . . Slashing Weapon 20 | . . . 1 . 1 3 . . . . 1 . . . 1 1 2 . . . 1 . 1 . 1 1 . 5 1 Piercing Weapon . | . . . . . . . . . . . . . . . . . . . . . . . . . . . . . . Special Melee Weapon 1 | . . . . . . . . . . . . . . . . . . . . . . . . . . . . . 1 Unidentified Prototypes 21 | . . . 3 . . 1 . . . . . . 3 1 . . . . 2 . 1 . . 1 . 6 . 1 2 Parts Lost 102 | . . 1 . . 1 17 2 . . 1 . 2 . 1 . 3 . . . 8 2 2 3 6 3 8 . 10 32 Power 12 | . . 1 . . . 3 1 . . . . . . . . 1 . . . . . 1 . 1 . . . 1 3 Propulsion 33 | . . . . . 1 7 . . . . . 2 . . . . . . . 3 1 . 2 4 . 3 . 1 9 Utility 21 | . . . . . . 2 . . . . . . . 1 . . . . . 1 1 1 . . . 3 . 3 9 Weapon 36 | . . . . . . 5 1 . . 1 . . . . . 2 . . . 4 . . 1 1 3 2 . 5 11 Highest Loss Streak 30 | . . 1 . . 1 3 1 . . 1 . 1 . 1 . 1 . . . 6 2 2 2 6 3 3 . 2 30 Average Slot Usage (%) 93 | . 98 100 96 100 98 99 99 100 78 100 100 99 91 85 86 87 88 88 90 94 98 100 100 96 99 93 81 81 75 Engine 2 | . 14 13 . . 7 6 6 . . . . 3 . . . . . . . . . . . . . . . . . Core 3 | . . . 14 14 1 . . 7 7 7 6 2 1 . . 3 5 5 5 5 5 5 5 1 5 . . 2 3 Reactor 1 | . . . . . . . . . . . . . 4 6 6 1 . . . . . . . 2 . 4 4 4 3 Treads 23 | . 10 28 28 28 35 29 30 30 30 30 26 25 18 13 13 11 11 11 14 17 29 31 31 28 31 26 16 16 14 Device 6 | . . . . . 1 2 7 7 7 7 6 6 6 6 6 7 11 11 9 5 5 5 5 4 5 6 8 14 13 Storage 18 | . 26 28 27 28 24 23 23 23 23 23 20 20 20 20 20 17 17 17 17 17 15 15 15 15 15 14 13 12 11 Processor 4 | . . . . . . . . . . . 6 6 6 6 6 5 9 11 11 11 10 6 5 8 10 5 4 6 7 Hackware 6 | . . . . . . 6 7 7 7 7 11 13 13 8 6 8 6 5 5 5 9 10 10 10 10 7 8 8 7 Protection 2 | . . . . . 9 5 . . . . 1 . . 3 6 4 . . 1 4 . 3 5 1 . 5 7 1 . Energy Gun 5 | . 1 5 12 14 8 6 10 7 . 7 6 12 6 6 6 4 4 3 5 5 4 . . 3 . 1 . 2 6 Ballistic Gun 13 | . 26 17 12 14 8 15 11 15 1 15 10 6 11 13 11 15 16 17 17 16 12 10 14 11 7 11 17 12 7 Naked Turns 17 | . . . . . . . . . . . . . . . . . . . . . . . . . . . . . 17 Heaviest Build 203 | 13 56 59 60 59 82 126 114 114 114 114 124 118 134 142 142 152 143 149 150 157 156 164 163 155 155 197 203 203 171 Greatest Support 295 | 20 40 40 40 40 80 91 91 91 91 91 91 96 160 160 160 160 160 160 160 126 160 160 171 171 162 184 210 295 295 Greatest Overweight (x) 6 | . 2 1 1 1 1 1 1 1 1 1 1 1 1 . . . . . 1 1 1 1 1 6 . 1 1 . 1 Average Overweight (x) . | . 1 1 . 1 . 1 1 1 1 1 1 1 . . . . . . . 1 . . . . . . . . . Largest Inventory Capacity 28 | 6 18 18 18 18 24 28 28 28 28 28 28 28 28 28 28 28 28 28 28 28 28 28 28 28 28 28 28 28 28 Average Capacity 26 | 6 14 18 17 18 22 26 28 28 28 28 28 28 28 28 28 28 28 28 28 28 28 28 28 28 28 28 28 28 25 Most Carried 28 | 6 18 18 18 18 24 28 28 28 28 28 27 28 28 28 28 28 28 28 28 28 28 28 28 28 28 28 28 28 28 Average Carried 25 | 6 13 17 17 18 21 25 27 28 28 27 26 27 27 27 28 27 27 28 27 26 27 27 27 27 27 27 27 27 24 Final Capacity 28 | 6 18 18 18 18 24 28 28 28 28 28 28 28 28 28 28 28 28 28 28 28 28 28 28 28 28 28 28 28 4 Final Carried 28 | 6 18 18 18 18 24 28 28 28 28 28 27 28 28 28 28 28 28 28 28 27 28 28 28 28 28 28 28 26 3 Class Distribution -------------------- 26% | Scavenger-Skirmisher 19% | Hauler-Skirmisher 12% | Mutant 9% | Scavenger-Tank 5% | Hacker-Gunner 5% | Hauler-Mutant 5% | Hacker-Tank 3% | Hacker-Skirmisher 3% | Scavenger-Gunner Dominant Class ---------------- Mutant | -10/Materials Mutant | -10/Mines Mutant | -10/Exiles Mutant | -9/Mines Hauler-Mutant | -8/Materials Hauler-Skirmisher | -7/Factory Hauler-Skirmisher | -7/Lower Caves Hauler-Skirmisher | -7/Lower Caves Hauler-Mutant | -7/Data Miner Hauler-Skirmisher | -6/Proximity Caves Scavenger-Skirmisher | -6/Factory Scavenger-Skirmisher | -6/Extension Scavenger-Skirmisher | -6/Cetus Scavenger-Skirmisher | -6/Archives Scavenger-Skirmisher | -6/Hub_04(d) Scavenger-Skirmisher | -5/Factory Scavenger-Skirmisher | -5/Upper Caves Scavenger-Skirmisher | -5/Upper Caves Scavenger-Skirmisher | -5/Zhirov Scavenger-Skirmisher | -4/Proximity Caves Scavenger-Skirmisher | -4/Factory Commander-Tank | -4/Upper Caves Hacker-Skirmisher | -4/Upper Caves Scavenger-Skirmisher | -4/Warlord Scavenger-Skirmisher | -3/Proximity Caves Scavenger-Tank | -3/Research Scavenger-Tank | -2/Research Hacker-Gunner | -1/Access Hacker-Gunner | -1/Command Resources | -11 -10 -10 -10 -9 -8 -7 -7 -7 -7 -6 -6 -6 -6 -6 -6 -5 -5 -5 -5 -4 -4 -4 -4 -4 -3 -3 -2 -1 -1 ----------- Run | Scr Mat Min Exi Min Mat Fac Low Low Dat Pro Fac Ext Cet Arc Hub Fac Upp Upp Zhi Pro Fac Upp Upp War Pro Res Res Acc Com Matter Collected 11938 | 218 174 137 . 78 199 1700 96 45 . 87 . 293 138 95 16 884 300 52 . 432 265 59 468 341 598 1382 357 2692 832 Remotely . | . . . . . . . . . . . . . . . . . . . . . . . . . . . . . . Salvage Created 17628 | 98 323 172 . 76 445 2182 107 47 . 103 . 249 175 121 141 1473 617 54 . 806 559 115 1069 89 380 1985 395 4474 1373 Parts 878 | 1 32 8 . 6 20 111 12 1 . 7 . 11 12 5 4 75 18 2 . 28 35 3 39 4 15 126 15 221 67 Haulers Intercepted 8 | . 1 . . . 1 2 . . . . . . . . . 2 . . . 1 1 . . . . . . . . Recyclers Shooed 6 | . 1 . . . . . . . . . . 1 . . . 1 . . . . . . . . . . . 2 1 Parts Field Recycled . | . . . . . . . . . . . . . . . . . . . . . . . . . . . . . . Retrieved Matter . | . . . . . . . . . . . . . . . . . . . . . . . . . . . . . . Parts Self-Destructed 229 | . . . . . . . 10 1 . 14 . . . . . . 17 2 . 27 . 11 37 100 10 . . . . Prevented 31 | . . . . . . . . . . . . . . . . . . . . . . 6 12 8 5 . . . . Kills | -11 -10 -10 -10 -9 -8 -7 -7 -7 -7 -6 -6 -6 -6 -6 -6 -5 -5 -5 -5 -4 -4 -4 -4 -4 -3 -3 -2 -1 -1 ------- Run | Scr Mat Min Exi Min Mat Fac Low Low Dat Pro Fac Ext Cet Arc Hub Fac Upp Upp Zhi Pro Fac Upp Upp War Pro Res Res Acc Com Combat Hostiles Destroyed 283 | . 10 4 . 1 14 41 4 2 . 4 . 5 2 1 1 24 10 1 . 13 7 2 18 1 8 31 4 61 14 Melee 1 | . . . . . . . . . . . . . . . . 1 . . . . . . . . . . . . . Guns 254 | . 10 4 . 1 14 40 4 2 . 4 . 5 2 1 1 22 10 1 . 13 5 1 14 1 3 17 4 61 14 Cannons 23 | . . . . . . . . . . . . . . . . 1 . . . . 1 . 3 . 5 13 . . . AOE 2 | . . . . . . 1 . . . . . . . . . . . . . . 1 . . . . . . . . Classes Destroyed 16 | 1 5 1 . . . 4 . . . . . . . . 1 3 . . . . . . . . . . . . 1 Worker 14 | . . . . . . 1 . . . . . . . . . 1 . . . . . . . . . 3 1 8 . Builder 12 | . 1 . . . . 2 . . . . . . . . . 1 . . . . 1 . . . . 1 . 6 . Tunneler 3 | . 1 . . 1 . . . . . . . . . . . . . . . . 1 . . . . . . . . Hauler 8 | . 1 . . . 1 2 . . . . . . . . . 2 . . . 1 1 . . . . . . . . Recycler 7 | 1 . . . . . 2 . . . . . . . . . . . . . . . . . . . . . 2 2 Operator 3 | . . . . . . 1 . . . . . . . 1 . . . . . . . . . . . 1 . . . Watcher 4 | . . . . . . . . . . . . . . . . 1 . . . . . . . . . . 1 1 1 Swarmer 78 | . 6 . . . 7 6 3 2 . 4 . 1 . . . 6 1 . . 4 . 1 7 . . 8 . 22 . Saboteur 1 | . . . . . . . . . . . . . . . . 1 . . . . . . . . . . . . . Grunt 82 | . 4 2 . 1 6 23 . . . . . 1 . . . 5 5 . . 4 . 1 5 . 4 4 2 8 7 Brawler 3 | . . . . . . . . . . . . . . . . 1 1 . . . . . 1 . . . . . . Duelist 7 | . . . . . . . . . . . . . . . . 3 2 . . . . . 2 . . . . . . Protector 1 | . . . . . . . . . . . . . . . . . . . . . . . . . . . . . 1 Sentry 29 | . . 2 . . 1 5 . . . . . 2 . 1 1 2 1 . . . 1 . 2 . . 3 2 6 . Hunter 28 | . . . . . . 1 . . . . . 1 . . . 2 . . . 2 2 . . 1 4 2 . 12 1 Programmer 52 | . . . . . . 6 1 . . . . . . . . 4 . 1 . 3 4 . 1 . . 14 . 13 5 Cetus Guard 2 | . . . . . . . . . . . . . 2 . . . . . . . . . . . . . . . . Thug 1 | . . . . . . . . . . . . . 1 . . . . . . . . . . . . . . . . Savage 1 | . . . . . . . . . . . . . . . 1 . . . . . . . . . . . . . . Best Kill Streak 15 | 1 4 2 . 2 5 4 3 2 . 3 . 2 2 1 1 5 7 1 . 5 3 1 7 1 6 6 3 15 7 Combat Bots Only 11 | . 3 2 . 1 5 4 3 2 . 3 . 2 2 1 1 5 7 1 . 5 2 1 7 1 6 6 2 11 7 Max Kills in Single Turn 3 | 1 2 1 . 1 2 2 2 1 . 1 . 1 2 1 1 3 1 1 . 1 2 1 2 1 1 2 1 3 2 Gunslinging 2 | . 1 . . . 1 1 . . . . . . . . . 1 . . . . . . 1 . . . . 2 1 Exploded 1 | . . . . . . 1 . . . . . . . . . . . . . . 1 . . . . . . . . Melee 1 | . . . . . . . . . . . . . . . . 1 . . . . . . . . . . . . . Uniques/NPCs Destroyed . | . . . . . . . . . . . . . . . . . . . . . . . . . . . . . . Combat | -11 -10 -10 -10 -9 -8 -7 -7 -7 -7 -6 -6 -6 -6 -6 -6 -5 -5 -5 -5 -4 -4 -4 -4 -4 -3 -3 -2 -1 -1 -------- Run | Scr Mat Min Exi Min Mat Fac Low Low Dat Pro Fac Ext Cet Arc Hub Fac Upp Upp Zhi Pro Fac Upp Upp War Pro Res Res Acc Com Damage Taken 34459 | . 453 103 . 28 646 3013 289 103 . 176 . 445 157 337 491 1149 771 20 . 1753 411 388 1468 2010 1330 3647 324 4873 10074 Core 3252 | . 54 15 . . 64 253 29 . . . . 57 . 24 . 158 172 . . 152 . 21 78 385 92 170 . 226 1302 Absorbed by Shields 611 | . . . . . . . . . . . . 92 112 . . 335 . . . 72 . . . . . . . . . Reduced by Siege Mode 327 | . . . . . . . . . . . . . . . . . . . . . . . . . . . . . 327 Core Remaining (%) 77 | 100 . . . 72 88 . . . . 59 . . . . 90 . . . . 51 . . . . 49 86 100 . . Volleys Fired 694 | 6 36 7 . 2 44 117 8 3 . 8 . 19 4 10 5 56 16 1 . 27 16 3 29 7 19 53 15 132 51 Largest 4 | 2 2 2 . 2 2 3 3 3 . 3 . 3 3 3 3 4 4 4 . 4 4 4 4 4 4 4 4 4 4 Hottest 291 | 70 70 88 . 88 88 177 177 136 . 136 . 188 188 150 150 231 186 186 . 238 258 258 258 224 273 291 125 258 258 Shots Fired 2254 | 11 71 14 . 4 80 334 24 9 . 22 . 51 9 27 9 193 62 4 . 101 55 10 100 28 76 210 60 512 178 Gun 2073 | 11 71 14 . 4 80 330 24 9 . 22 . 50 9 27 6 174 62 4 . 96 45 6 88 13 27 151 60 512 178 Cannon 173 | . . . . . . . . . . . . 1 . . 3 16 . . . 5 9 4 12 15 49 59 . . . Launcher . | . . . . . . . . . . . . . . . . . . . . . . . . . . . . . . Special 8 | . . . . . . 4 . . . . . . . . . 3 . . . . 1 . . . . . . . . Kinetic 1677 | 6 62 11 . 2 36 253 13 6 . 16 . 19 7 20 7 142 46 3 . 72 35 6 88 26 65 128 60 434 114 Thermal 505 | 5 9 3 . 2 44 64 11 3 . 6 . 32 2 7 2 48 16 1 . 27 10 . . 2 6 63 . 78 64 Explosive . | . . . . . . . . . . . . . . . . . . . . . . . . . . . . . . Electromagnetic 64 | . . . . . . 13 . . . . . . . . . . . . . 2 9 4 12 . 5 19 . . . Robot Hit Streak 35 | 7 8 15 . 1 18 17 16 8 . 4 . 22 6 16 20 22 34 35 . 30 31 7 22 11 12 26 14 35 32 Robot Miss Streak 11 | 1 7 1 . 3 6 7 7 4 . 11 . 5 5 1 . 3 2 . . 2 2 2 2 2 2 2 3 3 3 Penetration Max 2 | . . . . . . . . . . . . . 1 1 . 1 1 . . 1 1 . 1 . . 1 1 2 1 Secondary Targets 42 | . 2 1 . . 2 3 . . . 1 . 1 . . . 3 1 . . 5 . . 2 1 . . . 17 3 Max Gunslinging Chain 2 | . 1 1 . . 1 1 . . . 1 . 1 . . . 1 1 . . 1 . . 1 1 . . . 2 2 Shots Hit Robots 1690 | 8 42 13 . 1 58 257 20 7 . 19 1 50 9 23 4 133 50 1 . 78 38 9 74 22 59 143 43 382 146 Core Hits 861 | 2 20 8 . 3 29 155 14 6 . 10 . 46 10 9 3 51 21 1 . 30 20 4 37 6 23 72 17 191 73 Critical Hits 80 | . . . . . . 1 . . . . . . 3 4 . 16 9 . . 11 4 1 8 . 5 7 1 9 1 Critical Kills 28 | . . . . . . . . . . . . . 2 2 . 4 3 . . 4 3 . 2 . . 3 . 5 . Critical Parts Destroyed 47 | . . . . . . 1 . . . . . . 1 2 . 12 4 . . 7 1 1 5 . 5 4 1 2 1 Melee Attacks 65 | . . . . . 8 7 . . . . 2 . . . 2 1 2 . . . 1 . 2 . 2 1 . 33 4 Impact . | . . . . . . . . . . . . . . . . . . . . . . . . . . . . . . Slashing 64 | . . . . . 8 7 . . . . 2 . . . 2 1 2 . . . 1 . 2 . 2 1 . 33 3 Piercing . | . . . . . . . . . . . . . . . . . . . . . . . . . . . . . . Sneak Attacks . | . . . . . . . . . . . . . . . . . . . . . . . . . . . . . . Combat Hostiles . | . . . . . . . . . . . . . . . . . . . . . . . . . . . . . . Follow-up Attacks . | . . . . . . . . . . . . . . . . . . . . . . . . . . . . . . Damage Inflicted 42257 | 86 490 203 . 47 1046 4369 198 98 . 156 55 1261 285 602 296 3842 1312 28 . 2269 1519 205 1966 601 1547 4933 944 10099 3800 Guns 36940 | 86 490 203 . 47 1046 4254 198 98 . 156 . 1261 285 602 98 3618 1312 28 . 2061 907 77 1612 207 500 2966 944 10099 3785 Cannons 4363 | . . . . . . . . . . . . . . . . 224 . . . 208 202 128 354 394 1047 1806 . . . Explosions 884 | . . . . . . 115 . . . . . . . . 198 . . . . . 410 . . . . 161 . . . Melee 55 | . . . . . . . . . . . 55 . . . . . . . . . . . . . . . . . . Ramming 15 | . . . . . . . . . . . . . . . . . . . . . . . . . . . . . 15 Kinetic 28873 | 38 427 170 . 29 499 3075 137 65 . 65 . 410 217 442 51 2873 955 . . 1510 700 77 1612 549 1272 2519 944 8009 2228 Thermal 11078 | 48 63 33 . 18 547 1019 61 33 . 91 . 851 68 160 47 969 357 28 . 680 207 . . 52 135 1964 . 2090 1557 Explosive 495 | . . . . . . 85 . . . . . . . . . . . . . . 410 . . . . . . . . Electromagnetic 1741 | . . . . . . 190 . . . . . . . . 198 . . . . 79 202 128 354 . 140 450 . . . Impact . | . . . . . . . . . . . . . . . . . . . . . . . . . . . . . . Slashing 55 | . . . . . . . . . . . 55 . . . . . . . . . . . . . . . . . . Piercing . | . . . . . . . . . . . . . . . . . . . . . . . . . . . . . . Highest Corruption 41 | . . . . . . 2 3 3 3 3 . . . . 5 5 2 . . 3 1 1 . 3 . 17 . 5 41 Average Corruption 3 | . . . . . . 1 2 3 3 3 . . . . 2 3 1 . . 1 1 1 . 1 . 8 . 2 8 Corruption Purged 17 | . . . . . . . . . . . . . . . . 3 2 . . . . 1 . . . 1 . 7 3 Effects 198 | . . . . . . 13 6 6 2 12 . . . . . 35 4 . . 4 1 2 . . . 55 . 21 37 Message Errors 41 | . . . . . . 5 2 3 1 2 . . . . . 9 1 . . 2 1 . . . . 5 . 5 5 Matter Fused 31 | . . . . . . . 3 1 1 4 . . . . . 9 . . . . . . . . . 5 . 3 5 Heat Flow Errors 22 | . . . . . . 2 1 . . 3 . . . . . 5 . . . . . . . . . 7 . 2 2 Energy Discharges 18 | . . . . . . 3 . . . 2 . . . . . 3 1 . . . . 1 . . . 6 . 2 . Parts Rejected 1 | . . . . . . . . . . . . . . . . . . . . . . . . . . 1 . . . Data Loss (minor) 22 | . . . . . . 1 . 2 . 1 . . . . . 1 2 . . 2 . 1 . . . 7 . 3 2 Data Loss (major) 1 | . . . . . . . . . . . . . . . . . . . . . . . . . . 1 . . . Misfires 5 | . . . . . . . . . . . . . . . . . . . . . . . . . . 4 . . 1 Misdirections 6 | . . . . . . . . . . . . . . . . . . . . . . . . . . 3 . . 3 Targeting Errors 45 | . . . . . . 2 . . . . . . . . . 6 . . . . . . . . . 13 . 5 19 Weapon Failures 6 | . . . . . . . . . . . . . . . . 2 . . . . . . . . . 3 . 1 . Overload Shots 1 | . . . . . . . . . . . . . . . . . . . . . . . . . . 1 . . . Overflow Damage 217 | . . . . . . 5 . . . . 25 . . . . . . . . 54 16 9 . 34 2 72 . . . Projectiles 123 | . . . . . . . . . . . . . . . . . . . . 54 . 9 . 34 2 24 . . . Explosions 69 | . . . . . . 5 . . . . . . . . . . . . . . 16 . . . . 48 . . . Melee 25 | . . . . . . . . . . . 25 . . . . . . . . . . . . . . . . . . Knockbacks 19 | . . . . . . . . . . . . . . . . 1 . . . 3 . . . 6 8 1 . . . Impact . | . . . . . . . . . . . . . . . . . . . . . . . . . . . . . . Kinetic 19 | . . . . . . . . . . . . . . . . 1 . . . 3 . . . 6 8 1 . . . Secondary . | . . . . . . . . . . . . . . . . . . . . . . . . . . . . . . Self-Inflicted Damage 256 | . . . . . . 111 . . . . . . . . 103 . . . . . . . . . . 42 . . . Shots 4 | . . . . . . 2 . . . . . . . . 1 . . . . . . . . . . 1 . . . Rammed 1 | . . . . . . . . . . . . . . . . . . . . . . . . . . . . . 1 Targets Rammed 1 | . . . . . . . . . . . . . . . . . . . . . . . . . . . . . 1 Kicked . | . . . . . . . . . . . . . . . . . . . . . . . . . . . . . . Crushed . | . . . . . . . . . . . . . . . . . . . . . . . . . . . . . . Highest Temperature 357 | 27 81 33 . 48 207 254 241 135 . 244 . 192 99 138 16 357 274 102 . 194 201 120 234 315 261 280 . 205 99 Average Temperature 66 | 13 29 12 . 30 52 74 96 64 . 72 . 90 54 48 15 64 58 56 . 101 68 49 102 128 88 65 . 21 25 Received Heat Transfer 4013 | . 102 36 . 15 225 1125 . . . . . 113 20 54 18 120 135 . . 211 18 75 168 126 162 408 63 207 612 Effects 3 | . . . . . . . . . . . . . . . . . 3 . . . . . . . . . . . . Interference 3 | . . . . . . . . . . . . . . . . . 3 . . . . . . . . . . . . Siege Activations 2 | . . . . . . . . . . . . . . . . . . . . . . . . . . . . . 2 Total Turns 36 | . . . . . . . . . . . . . . . . . . . . . . . . . . . . . 36 Longest Duration 27 | . . . . . . . . . . . . . . . . . . . . . . . . . . . . . 27 Robots Corrupted 4 | . . . . . . . . . . . . . . . 1 . . . . . . 1 1 . . 1 . . . Combat Hostiles 3 | . . . . . . . . . . . . . . . . . . . . . . 1 1 . . 1 . . . Parts Fried 8 | . . . . . . . . . . . . . . . . . . . . . 1 3 2 . . 2 . . . Impact Corruptions . | . . . . . . . . . . . . . . . . . . . . . . . . . . . . . . Robots Melted . | . . . . . . . . . . . . . . . . . . . . . . . . . . . . . . Combat Hostiles . | . . . . . . . . . . . . . . . . . . . . . . . . . . . . . . Parts Melted 32 | . . . . . 2 4 . . . . . 2 . . . . . . . 1 . . . . . 13 . 5 5 Heat Transferred 16044 | 148 185 74 . 37 1184 2069 112 75 . 200 . 1928 150 222 74 1258 555 37 . 814 259 . . 74 300 2110 . 2442 1737 Parts Sabotaged 8 | . . . . . . . . . . . . . . . . 1 . . . . . . . 7 . . . . . Parts Stolen . | . . . . . . . . . . . . . . . . . . . . . . . . . . . . . . Parts Stripped . | . . . . . . . . . . . . . . . . . . . . . . . . . . . . . . Power Chain Reactions 2 | . . . . . . 1 . . . . . . . . . . . . . . . . . . . 1 . . . Missiles Intercepted 4 | . . . . . . . . . . . . . . . . . . . . . . . . . . . . . 4 Alert | -11 -10 -10 -10 -9 -8 -7 -7 -7 -7 -6 -6 -6 -6 -6 -6 -5 -5 -5 -5 -4 -4 -4 -4 -4 -3 -3 -2 -1 -1 ------- Run | Scr Mat Min Exi Min Mat Fac Low Low Dat Pro Fac Ext Cet Arc Hub Fac Upp Upp Zhi Pro Fac Upp Upp War Pro Res Res Acc Com Peak Influence 1980 | 5 265 118 . 61 142 540 . . . . 54 809 1161 618 460 448 . . . . 381 . . . . 461 406 976 1980 Average Influence 274 | 2 144 46 . 20 35 200 . . . . 39 162 880 589 264 299 . . . . 103 . . . . 187 206 484 1442 Maximum Alert Level 5 | . 1 . . . . 2 . . . . . 3 4 2 2 2 . . . . 1 . . . . 2 2 3 5 Low Security (%) 50 | 100 84 100 . 100 100 43 . . . . 100 72 . . . 13 . . . . 93 . . . . 48 26 26 . Level 1 30 | . 15 . . . . 45 . . . . . 20 . . 90 71 . . . . 6 . . . . 40 62 24 . Level 2 8 | . . . . . . 11 . . . . . 2 20 100 9 14 . . . . . . . . . 11 11 8 15 Level 3 7 | . . . . . . . . . . . . 5 47 . . . . . . . . . . . . . . 40 15 Level 4 1 | . . . . . . . . . . . . . 31 . . . . . . . . . . . . . . . 8 Level 5 2 | . . . . . . . . . . . . . . . . . . . . . . . . . . . . . 61 High Security . | . . . . . . . . . . . . . . . . . . . . . . . . . . . . . . Max Security . | . . . . . . . . . . . . . . . . . . . . . . . . . . . . . . Squads Dispatched 57 | . 4 1 . . 2 16 . . . . 2 4 1 . . 4 . . . . 3 . 1 . . 4 . 11 4 Investigation 10 | . 2 1 . . 1 2 . . . . 1 1 1 . . 1 . . . . . . . . . . . . . Extermination 19 | . . . . . . 7 . . . . . . . . . 1 . . . . 1 . . . . 4 . 5 1 Reinforcement 17 | . 2 . . . 1 4 . . . . 1 3 . . . . . . . . 2 . . . . . . 3 1 Assault 4 | . . . . . . . . . . . . . . . . 1 . . . . . . 1 . . . . . 2 Garrison 7 | . . . . . . 3 . . . . . . . . . 1 . . . . . . . . . . . 3 . Intercept . | . . . . . . . . . . . . . . . . . . . . . . . . . . . . . . Construction Impeded 3 | . . . . . 1 1 . . . . . . . . . . . . . . 1 . . . . . . . . Haulers Reinforced 3 | . . . . . . . . . . . . . . . . . . . . . 1 . . . . . . 2 . Stealth | -11 -10 -10 -10 -9 -8 -7 -7 -7 -7 -6 -6 -6 -6 -6 -6 -5 -5 -5 -5 -4 -4 -4 -4 -4 -3 -3 -2 -1 -1 --------- Run | Scr Mat Min Exi Min Mat Fac Low Low Dat Pro Fac Ext Cet Arc Hub Fac Upp Upp Zhi Pro Fac Upp Upp War Pro Res Res Acc Com Distress Signals 34 | . 1 . . . 2 1 . . . . . 2 2 . 2 . . . . . . . . 2 . 1 8 8 5 Communications Jammed . | . . . . . . . . . . . . . . . . . . . . . . . . . . . . . . Distress Signals . | . . . . . . . . . . . . . . . . . . . . . . . . . . . . . . Times Spotted 491 | . 18 4 . 2 27 57 4 3 . 8 1 29 17 8 10 30 18 1 . 15 7 7 25 24 8 48 6 74 40 Peak Tracking Total 12 | . 5 2 . 2 4 6 3 3 . 4 . 6 5 2 9 5 8 1 . 6 2 4 8 12 4 7 2 8 9 Tactical Retreats 19 | . . . . . 1 5 . 1 . . . . . . . 2 . . . 1 . . 1 1 . 1 . 4 2 Traps | -11 -10 -10 -10 -9 -8 -7 -7 -7 -7 -6 -6 -6 -6 -6 -6 -5 -5 -5 -5 -4 -4 -4 -4 -4 -3 -3 -2 -1 -1 ------- Run | Scr Mat Min Exi Min Mat Fac Low Low Dat Pro Fac Ext Cet Arc Hub Fac Upp Upp Zhi Pro Fac Upp Upp War Pro Res Res Acc Com Traps Triggered 15 | . 2 . . . . 1 . . . . . 6 . . 4 . . . . . . . . . . 1 . 1 . Indirectly 3 | . . . . . . . . . . . . . . . 3 . . . . . . . . . . . . . . Trap Hack Attempts . | . . . . . . . . . . . . . . . . . . . . . . . . . . . . . . Triggered . | . . . . . . . . . . . . . . . . . . . . . . . . . . . . . . Disarmed . | . . . . . . . . . . . . . . . . . . . . . . . . . . . . . . Reprogrammed . | . . . . . . . . . . . . . . . . . . . . . . . . . . . . . . Reused . | . . . . . . . . . . . . . . . . . . . . . . . . . . . . . . Traps Extracted . | . . . . . . . . . . . . . . . . . . . . . . . . . . . . . . Installed . | . . . . . . . . . . . . . . . . . . . . . . . . . . . . . . Triggered 10 | . . . . . . . . . . . . . . . . . . . . 1 . . 3 6 . . . . . Machines | -11 -10 -10 -10 -9 -8 -7 -7 -7 -7 -6 -6 -6 -6 -6 -6 -5 -5 -5 -5 -4 -4 -4 -4 -4 -3 -3 -2 -1 -1 ---------- Run | Scr Mat Min Exi Min Mat Fac Low Low Dat Pro Fac Ext Cet Arc Hub Fac Upp Upp Zhi Pro Fac Upp Upp War Pro Res Res Acc Com Machines Disabled 21 | . . . . . 1 1 . . . . . 1 1 2 6 1 1 . . . 7 . . . . . . . . Max in Single Turn 4 | . . . . . 1 1 . . . . . 1 . 1 4 1 1 . . . 4 . . . . . . . . Garrison Access 4 | . . . . . . . . . . . . . . . . 2 . . . . 1 . . . . . . 1 . Network Hub 1 | . . . . . . . . . . . . . . . 1 . . . . . . . . . . . . . . Machines Sabotaged . | . . . . . . . . . . . . . . . . . . . . . . . . . . . . . . Garrisons Compromised . | . . . . . . . . . . . . . . . . . . . . . . . . . . . . . . Overloaded Fab Kills . | . . . . . . . . . . . . . . . . . . . . . . . . . . . . . . Fab Network Shutdowns . | . . . . . . . . . . . . . . . . . . . . . . . . . . . . . . Hacking | -11 -10 -10 -10 -9 -8 -7 -7 -7 -7 -6 -6 -6 -6 -6 -6 -5 -5 -5 -5 -4 -4 -4 -4 -4 -3 -3 -2 -1 -1 --------- Run | Scr Mat Min Exi Min Mat Fac Low Low Dat Pro Fac Ext Cet Arc Hub Fac Upp Upp Zhi Pro Fac Upp Upp War Pro Res Res Acc Com Machines Accessed 85 | . 3 2 . 1 8 12 . . 4 . 1 8 4 . 2 8 2 1 6 . 4 . . 6 . 2 . 7 4 Terminals 48 | . 2 . . 1 7 7 . . . . 1 8 4 . 2 4 . . . . 2 . . . . 1 . 5 4 Fabricators 4 | . . . . . . 1 . . . . . . . . . 1 . . . . 1 . . . . 1 . . . Repair Stations 2 | . . . . . 1 1 . . . . . . . . . . . . . . . . . . . . . . . Recycling Units 4 | . 1 . . . . 2 . . . . . . . . . . . . . . . . . . . . . 1 . Scanalyzers 2 | . . . . . . 1 . . . . . . . . . 1 . . . . . . . . . . . . . Garrison Access 4 | . . . . . . . . . . . . . . . . 2 . . . . 1 . . . . . . 1 . Total Hacks 298 | . 8 2 . 5 28 32 . . 26 . 3 26 11 . 5 43 2 1 19 . 21 . . 6 . 11 . 28 21 Successful 164 | . 4 2 . 2 15 19 . . 26 . . 15 6 . . 15 2 1 19 . 15 . . 6 . 3 . 5 9 Failed 133 | . 4 . . 3 13 13 . . . . 3 10 5 . 5 28 . . . . 6 . . . . 8 . 23 12 Catastrophic 24 | . 1 . . . 1 1 . . . . 1 2 . . . 9 . . . . 1 . . . . 1 . 4 3 Database Lockouts 1 | . . . . . . . . . . . . 1 . . . . . . . . . . . . . . . . . Manual 134 | . 7 . 1 5 19 13 . . . . . 17 7 . . 17 . . . . 10 . . 1 . 8 . 15 14 Terminals 190 | . 6 . . 5 26 21 . . . . 3 26 11 . 5 23 . . . . 12 . . . . 10 . 21 21 Fabricators 15 | . . . . . . 4 . . . . . . . . . 2 . . . . 8 . . . . 1 . . . Repair Stations 4 | . . . . . 2 2 . . . . . . . . . . . . . . . . . . . . . . . Recycling Units 9 | . 2 . . . . 2 . . . . . . . . . . . . . . . . . . . . . 5 . Scanalyzers 17 | . . . . . . 3 . . . . . . . . . 14 . . . . . . . . . . . . . Garrison Access 7 | . . . . . . . . . . . . . . . . 4 . . . . 1 . . . . . . 2 . Terminal Hacks 108 | . . 2 . 2 9 8 . . 26 . . 10 2 . . 5 2 1 19 . 3 . . 6 . 3 . 3 7 Record 28 | . . . . . . . . . 11 . . 1 1 . . . 1 . 7 . . . . 5 . 2 . . . Part Schematic 19 | . . . . 2 2 . . . 6 . . 4 . . . 1 . . 4 . . . . . . . . . . Robot Schematic 6 | . . . . . . . . . 6 . . . . . . . . . . . . . . . . . . . . Robot Analysis 4 | . . . . . . . . . . . . . . . . . . . 4 . . . . . . . . . . Prototype ID Bank 9 | . . . . . 1 . . . 3 . . 1 . . . . . . 4 . . . . . . . . . . Open Door 7 | . . 2 . . . . . . . . . . 1 . . . 1 1 . . . . . 1 . . . . 1 Level Access Points 2 | . . . . . . . . . . . . . . . . . . . . . . . . . . 1 . . 1 Branch Access Points 4 | . . . . . 1 1 . . . . . . . . . 1 . . . . 1 . . . . . . . . Terminal Index 3 | . . . . . . 1 . . . . . . . . . . . . . . . . . . . . . 1 1 Fabricator Index 2 | . . . . . . 1 . . . . . . . . . . . . . . . . . . . . . . 1 Unreport Threat 12 | . . . . . 3 2 . . . . . 2 . . . 2 . . . . . . . . . . . 2 1 Locate Traps 2 | . . . . . . . . . . . . . . . . 1 . . . . . . . . . . . . 1 Dispatch Records 1 | . . . . . . . . . . . . 1 . . . . . . . . . . . . . . . . . Recall Investigation 1 | . . . . . . . . . . . . 1 . . . . . . . . . . . . . . . . . Registered Components 1 | . . . . . . . . . . . . . . . . . . . . . 1 . . . . . . . . Zone Layout 6 | . . . . . 2 3 . . . . . . . . . . . . . . 1 . . . . . . . . Disengage Seal 1 | . . . . . . . . . . . . . . . . . . . . . . . . . . . . . 1 Fabricator Hacks 12 | . . . . . . 4 . . . . . . . . . 2 . . . . 6 . . . . . . . . Load Schematic 6 | . . . . . . 2 . . . . . . . . . 1 . . . . 3 . . . . . . . . Build 6 | . . . . . . 2 . . . . . . . . . 1 . . . . 3 . . . . . . . . Repair Station Hacks 2 | . . . . . 2 . . . . . . . . . . . . . . . . . . . . . . . . Scan Component 1 | . . . . . 1 . . . . . . . . . . . . . . . . . . . . . . . . Repair 1 | . . . . . 1 . . . . . . . . . . . . . . . . . . . . . . . . Recycling Unit Hacks 2 | . 1 . . . . 1 . . . . . . . . . . . . . . . . . . . . . . . Report Inventory 1 | . 1 . . . . . . . . . . . . . . . . . . . . . . . . . . . . Retrieve Components 1 | . . . . . . 1 . . . . . . . . . . . . . . . . . . . . . . . Scanalyzer 5 | . . . . . . 1 . . . . . . . . . 4 . . . . . . . . . . . . . Insert Component 3 | . . . . . . 1 . . . . . . . . . 2 . . . . . . . . . . . . . Analyze 2 | . . . . . . . . . . . . . . . . 2 . . . . . . . . . . . . . Garrison Access Hacks 4 | . . . . . . . . . . . . . . . . 2 . . . . 1 . . . . . . 1 . Seal Access 4 | . . . . . . . . . . . . . . . . 2 . . . . 1 . . . . . . 1 . Unauthorized Hacks 31 | . 3 . . . 4 5 . . . . . 5 4 . . 2 . . . . 5 . . . . . . 1 2 Terminals 27 | . 2 . . . 4 4 . . . . . 5 4 . . 2 . . . . 4 . . . . . . . 2 Track 6 | . . . . . 2 . . . . . . . . . . 1 . . . . 2 . . . . . . . 1 Assimilate 2 | . 1 . . . . 1 . . . . . . . . . . . . . . . . . . . . . . . Botnet 13 | . . . . . 1 2 . . . . . 5 3 . . 1 . . . . 1 . . . . . . . . Disrupt 4 | . . . . . . 1 . . . . . . 1 . . . . . . . 1 . . . . . . . 1 Operators 2 | . 1 . . . 1 . . . . . . . . . . . . . . . . . . . . . . . . Fabricators 1 | . . . . . . . . . . . . . . . . . . . . . 1 . . . . . . . . Prioritize 1 | . . . . . . . . . . . . . . . . . . . . . 1 . . . . . . . . Repair Stations . | . . . . . . . . . . . . . . . . . . . . . . . . . . . . . . Recycling Units 3 | . 1 . . . . 1 . . . . . . . . . . . . . . . . . . . . . 1 . Mask 3 | . 1 . . . . 1 . . . . . . . . . . . . . . . . . . . . . 1 . Scanalyzers . | . . . . . . . . . . . . . . . . . . . . . . . . . . . . . . Garrison Access . | . . . . . . . . . . . . . . . . . . . . . . . . . . . . . . Data Cores Recovered 1 | . . . . . . . . . . . . 1 . . . . . . . . . . . . . . . . . Used . | . . . . . . . . . . . . . . . . . . . . . . . . . . . . . . Hacking Detections 51 | . 3 . . 1 8 11 . . . . 1 5 1 . 2 5 . . . . 2 . . . . 2 . 6 4 Full Trace Events 7 | . 1 . . . 1 2 . . . . 1 . 1 . . 1 . . . . . . . . . . . . . Feedback Events . | . . . . . . . . . . . . . . . . . . . . . . . . . . . . . . Feedback Blocked . | . . . . . . . . . . . . . . . . . . . . . . . . . . . . . . Robot Schematics Acquired 6 | . . . . . . . . . 6 . . . . . . . . . . . . . . . . . . . . Robots Built 4 | . . . . . . . . . . . . . . . . . . . . . 4 . . . . . . . . Matter 636 | . . . . . . . . . . . . . . . . . . . . . 636 . . . . . . . . Time 253 | . . . . . . . . . . . . . . . . . . . . . 253 . . . . . . . . Total Robot Build Rating 24 | . . . . . . . . . . . . . . . . . . . . . 24 . . . . . . . . Part Schematics Acquired 19 | . . . . 2 2 . . . 6 . . 4 . . . 1 . . 4 . . . . . . . . . . Parts Built 6 | . . . . . . 3 . . . . . . . . . 2 . . . . 1 . . . . . . . . Matter 540 | . . . . . . 226 . . . . . . . . . 212 . . . . 102 . . . . . . . . Time 270 | . . . . . . 113 . . . . . . . . . 106 . . . . 51 . . . . . . . . Total Part Build Rating 18 | . . . . . . 5 . . . . . . . . . 12 . . . . 1 . . . . . . . . Parts Repaired 1 | . . . . . 1 . . . . . . . . . . . . . . . . . . . . . . . . Time 38 | . . . . . 38 . . . . . . . . . . . . . . . . . . . . . . . . Parts Recycled . | . . . . . . . . . . . . . . . . . . . . . . . . . . . . . . Recycled Matter . | . . . . . . . . . . . . . . . . . . . . . . . . . . . . . . Retrieved Matter . | . . . . . . . . . . . . . . . . . . . . . . . . . . . . . . Retrieved Components 2 | . . . . . . 2 . . . . . . . . . . . . . . . . . . . . . . . Parts Scanalyzed 2 | . . . . . . . . . . . . . . . . 2 . . . . . . . . . . . . . Part Schematics Acquired . | . . . . . . . . . . . . . . . . . . . . . . . . . . . . . . Parts Damaged . | . . . . . . . . . . . . . . . . . . . . . . . . . . . . . . Bothacking | -11 -10 -10 -10 -9 -8 -7 -7 -7 -7 -6 -6 -6 -6 -6 -6 -5 -5 -5 -5 -4 -4 -4 -4 -4 -3 -3 -2 -1 -1 ------------ Run | Scr Mat Min Exi Min Mat Fac Low Low Dat Pro Fac Ext Cet Arc Hub Fac Upp Upp Zhi Pro Fac Upp Upp War Pro Res Res Acc Com Used RIF Installer . | . . . . . . . . . . . . . . . . . . . . . . . . . . . . . . Robots Hacked 7 | . . . . . . 3 . . . . . . . . . 2 . . . . 1 . . . . . . . 1 Non-combat 6 | . . . . . . 3 . . . . . . . . . 2 . . . . 1 . . . . . . . . Combat . | . . . . . . . . . . . . . . . . . . . . . . . . . . . . . . Robot Hacks Applied 7 | . . . . . . 3 . . . . . . . . . 3 . . . . 1 . . . . . . . . no_distress 5 | . . . . . . 2 . . . . . . . . . 2 . . . . 1 . . . . . . . . find_fabricator 2 | . . . . . . 1 . . . . . . . . . 1 . . . . . . . . . . . . . Manual 1 | . . . . . . . . . . . . . . . . . . . . . . . . . . . . . 1 Relay Couplers Released 10 | . . . . . . . . . . . . . . . . . . . . . . . . . . 3 7 . . Programmers 10 | . . . . . . . . . . . . . . . . . . . . . . . . . . 3 7 . . Robots Rewired 15 | . . . . . . . . . . . . 11 . . . . 2 . . . . . 2 . . . . . . Allies Hacked 2 | . . . . . . . . . . . . . . . . . . . . . . 1 1 . . . . . . Hacks Repelled 1 | . . . . . . . . . . . . . . . . . . . . . . . 1 . . . . . . Allies | -11 -10 -10 -10 -9 -8 -7 -7 -7 -7 -6 -6 -6 -6 -6 -6 -5 -5 -5 -5 -4 -4 -4 -4 -4 -3 -3 -2 -1 -1 -------- Run | Scr Mat Min Exi Min Mat Fac Low Low Dat Pro Fac Ext Cet Arc Hub Fac Upp Upp Zhi Pro Fac Upp Upp War Pro Res Res Acc Com Total Allies 72 | . . 3 . . . 1 . . . 1 . 27 . . . . 2 . . . 4 2 3 . . . . . 29 Largest Group 24 | . . 3 2 2 2 1 . . . 1 1 24 18 7 3 . 2 2 . . 4 6 5 . . . . . 17 Highest-Rated Group 859 | . . 40 32 32 32 26 . . . 94 94 859 717 363 134 . 58 58 . . 200 300 258 . . . . . 735 Highest-Rated Ally 156 | . . 16 16 16 16 26 . . . 94 94 156 156 140 87 . 29 29 . . 54 58 58 . . . . . 90 Total Orders 40 | . . . . . . . . . . . . . . . . . . . . . . . . . . . 13 27 . COLLECT 32 | . . . . . . . . . . . . . . . . . . . . . . . . . . . 9 23 . EXPLORE 8 | . . . . . . . . . . . . . . . . . . . . . . . . . . . 4 4 . Ally Attacks 615 | . . 1 . 8 8 . . . . 8 . 146 93 14 17 . 1 3 . . 6 23 34 . . . . . 253 Total Damage 16436 | . . 15 . 112 78 . . . . 185 . 3248 1932 432 400 . 20 44 . . 95 560 533 . . . . . 8782 Kills 113 | . . . . 1 1 . . . . 2 . 31 19 3 1 . 1 . . . 1 5 5 . . . . . 43 Allies Corrupted 1 | . . . . . . . . . . . . . . . 1 . . . . . . . . . . . . . . Allies Melted . | . . . . . . . . . . . . . . . . . . . . . . . . . . . . . . Intel | -11 -10 -10 -10 -9 -8 -7 -7 -7 -7 -6 -6 -6 -6 -6 -6 -5 -5 -5 -5 -4 -4 -4 -4 -4 -3 -3 -2 -1 -1 ------- Run | Scr Mat Min Exi Min Mat Fac Low Low Dat Pro Fac Ext Cet Arc Hub Fac Upp Upp Zhi Pro Fac Upp Upp War Pro Res Res Acc Com Robot Analysis Total 4 | . . . . . . . . . . . . . . . . . . . 4 . . . . . . . . . . Derelict Logs Recovered 10 | . . 1 . 1 . . 1 . . 2 . . . . . . 2 . . 1 . 1 1 . . . . . . Drone Launches 35 | . . . . . . . . . . . . . . . . . . . . . . . . . . . 9 26 . Drone Recoveries 21 | . . . . . . . . . . . . . . . . . . . . . . . . . . . 7 14 . Exploration | -11 -10 -10 -10 -9 -8 -7 -7 -7 -7 -6 -6 -6 -6 -6 -6 -5 -5 -5 -5 -4 -4 -4 -4 -4 -3 -3 -2 -1 -1 ------------- Run | Scr Mat Min Exi Min Mat Fac Low Low Dat Pro Fac Ext Cet Arc Hub Fac Upp Upp Zhi Pro Fac Upp Upp War Pro Res Res Acc Com Turns Passed 25797 | 57 751 961 497 510 1431 3340 476 461 179 677 236 1418 390 165 302 1775 1346 616 342 908 821 403 918 784 468 1438 1082 2375 670 Spaces Moved 12289 | 33 312 504 266 281 680 1354 246 215 97 361 121 677 196 70 176 932 678 364 192 439 356 222 509 456 225 579 557 921 270 Core 72 | . . . . . . . . . . . . . . . . . . . . . . . . . . . . . 72 Treads 11991 | . 119 504 266 281 680 1354 246 215 97 361 121 677 196 70 176 932 678 364 192 439 356 222 509 456 225 579 557 921 198 Legs 226 | 33 193 . . . . . . . . . . . . . . . . . . . . . . . . . . . . Wheels . | . . . . . . . . . . . . . . . . . . . . . . . . . . . . . . Hover . | . . . . . . . . . . . . . . . . . . . . . . . . . . . . . . Flight . | . . . . . . . . . . . . . . . . . . . . . . . . . . . . . . Fastest Speed 50 | 120 120 180 160 180 160 180 180 180 180 180 180 180 160 160 160 160 160 160 160 180 150 150 150 148 170 163 158 158 50 Average Speed 169 | 120 173 180 179 180 172 180 180 180 180 180 180 180 174 160 160 160 160 160 169 180 160 163 152 155 170 184 181 158 133 Slowest Speed 280 | 120 200 180 180 180 180 180 180 180 180 180 180 180 180 160 160 160 160 160 180 180 180 170 170 280 170 190 183 158 190 Overloaded Moves . | . . . . . . . . . . . . . . . . . . . . . . . . . . . . . . Propulsion Burnouts . | . . . . . . . . . . . . . . . . . . . . . . . . . . . . . . Robots Hopped . | . . . . . . . . . . . . . . . . . . . . . . . . . . . . . . Cave-ins Triggered 1 | . . . . . . . . . . . . . . . . . . . . . . . . . . . . 1 . Exploration Rate (%) 47 | 3 48 97 62 53 43 28 48 41 68 51 3 83 78 71 22 19 72 53 61 62 8 41 76 60 47 14 53 40 17 Regions Visited 29 Branch Regions 20 Pre-discovered Areas 7 | . . 1 . 1 . . . . 1 1 . . . . . . . . 3 . . . . . . . . . . Known Exits Taken 6 | . . . . . . 1 . . . . . . . . . 1 . . . . 1 . . . 1 1 1 . . Unknown Exits Taken 23 | 1 1 1 1 1 1 . 1 1 1 1 1 1 1 1 1 . 1 1 1 1 . 1 1 1 . . . 1 . Scrap Searched 15 | . . 1 . . . . . 1 . . . . . . . . 3 2 . 2 . 3 1 . 2 . . . . Spaces Dug 57 | . . . . . 5 7 . . . . 1 . . . 4 1 1 . . . 1 . 2 . 2 1 . 32 . Terrain Destroyed 460 | . . . . . 5 36 . . . . 1 . . 5 170 37 11 2 . 27 28 1 17 5 23 25 . 48 19 Melee 55 | . . . . . 5 7 . . . . 1 . . . 2 1 1 . . . 1 . 2 . 2 1 . 32 . Projectile 189 | . . . . . . . . . . . . . . 5 3 36 10 2 . 27 7 1 15 5 21 22 . 16 19 AOE 216 | . . . . . . 29 . . . . . . . . 165 . . . . . 20 . . . . 2 . . . Actions | -11 -10 -10 -10 -9 -8 -7 -7 -7 -7 -6 -6 -6 -6 -6 -6 -5 -5 -5 -5 -4 -4 -4 -4 -4 -3 -3 -2 -1 -1 --------- Run | Scr Mat Min Exi Min Mat Fac Low Low Dat Pro Fac Ext Cet Arc Hub Fac Upp Upp Zhi Pro Fac Upp Upp War Pro Res Res Acc Com Total 15588 | 39 458 547 287 282 850 2000 259 283 102 370 136 832 238 103 186 1090 898 394 209 491 570 253 581 515 259 817 598 1480 461 Wait 1647 | 1 84 17 . . 81 406 2 60 . . 7 33 11 13 2 61 155 27 . 7 160 21 . 3 . 88 . 317 91 Move 12259 | 32 311 503 265 280 679 1353 245 214 96 360 120 676 195 69 175 931 677 363 191 438 355 221 508 455 224 578 556 919 270 Hop . | . . . . . . . . . . . . . . . . . . . . . . . . . . . . . . Pick Up 248 | . 13 7 7 . 19 40 1 3 . 1 1 4 6 5 . 12 5 . 5 9 13 3 7 19 5 29 9 19 6 Fast Attach 67 | . 4 2 6 . 2 4 1 . 3 . . 2 6 . . 3 . . 2 . 3 . 2 4 . 12 1 7 3 Attach 120 | . . 1 1 . 5 19 1 . . 1 2 3 . 2 . 6 . . 3 9 3 2 3 12 3 11 1 14 18 Detach 5 | . . . 1 . . . . . . . . . . . . 1 . . . . . . . . . 2 . . 1 Swap 142 | . 3 2 . . 3 26 1 . . . 4 6 2 . 2 10 12 3 2 1 7 2 7 4 4 13 3 24 1 Drop 216 | . 7 8 7 . 9 28 . 3 3 . . 6 14 4 . 9 5 . 6 . 12 1 9 11 2 30 13 14 15 Fire 694 | 6 36 7 . 2 44 117 8 3 . 8 . 19 4 10 5 56 16 1 . 27 16 3 29 7 19 53 15 132 51 Melee 65 | . . . . . 8 7 . . . . 2 . . . 2 1 2 . . . 1 . 2 . 2 1 . 33 4 Ram . | . . . . . . . . . . . . . . . . . . . . . . . . . . . . . . Kick . | . . . . . . . . . . . . . . . . . . . . . . . . . . . . . . Crush 1 | . . . . . . . . . . . . . . . . . . . . . . . . . . . . . 1 Escape Stasis 13 | . . . . . . . . . . . . 12 . . . . . . . . . . . . . . . 1 . Rewire 111 | . . . . . . . . . . . . 71 . . . . 26 . . . . . 14 . . . . . . Trap . | . . . . . . . . . . . . . . . . . . . . . . . . . . . . . . Miscellaneous . | . . . . . . . . . . . . . . . . . . . . . . . . . . . . . . Route ------- -11/Scrapyard -10/Materials (discovered 2 exits: [*Mat] / *Min) -10/Mines (discovered 3 exits: [*Mat x2] / *Exi) -10/Exiles -9/Mines -8/Materials -7/Factory (discovered 3 exits: *Fac / *Low x2) -7/Lower Caves -7/Lower Caves -7/Data Miner -6/Proximity Caves -6/Factory (discovered 2 exits: Low / *Ext) -6/Extension (discovered 2 exits: *Fac / *Cet) -6/Cetus (discovered 2 exits: *Fac / [*Arc]) -6/Archives (discovered 2 exits: *Fac / *Hub) -6/Hub_04(d) -5/Factory (discovered 3 exits: *Fac / *Upp x2) -5/Upper Caves -5/Upper Caves (discovered 2 exits: Fac / *Zhi) -5/Zhirov -4/Proximity Caves -4/Factory (discovered 2 exits: *Upp x2) -4/Upper Caves -4/Upper Caves (discovered 2 exits: *Res / *War) -4/Warlord -3/Proximity Caves -3/Research (discovered 3 exits: *Res x3) -2/Research (discovered 3 exits: *Acc / *Tes x2) -1/Access -1/Command (discovered 2 exits: Sur x2) History --------- Turn | Location | Event 12 | -11/Scrapyard | Discovered new exit (range 3) 58 | -11/Scrapyard | Entered Materials 304 | -10/Materials | Build established: Mutant 411 | -10/Materials | Discovered new exit (range 16) 520 | -10/Materials | Discovered new exit (range 12) 809 | -10/Materials | Entered Mines 809 | -10/Mines | Discovered new exit (range 9) 868 | -10/Mines | Met a Derelict shopkeep closing up shop 992 | -10/Mines | Assembled infested the area 997 | -10/Mines | Assisted by a Guerilla fighting off Assembled 1045 | -10/Mines | Learned location of Mines (-9) 1124 | -10/Mines | Assisted by bots powering up and referring to "LRC-V3" 1264 | -10/Mines | A weapon hastily lodged in a ceiling crevice suddenly fell to the ground 1489 | -10/Mines | Found the Drone Emporium 1499 | -10/Mines | Found Prototype Device 1705 | -10/Mines | Discovered new exit (range 7) 1712 | -10/Mines | Received a Rocket Launcher from a helpful Derelict 1761 | -10/Mines | Deemed a non-threat by the Exiles lab entrance 1761 | -10/Mines | Discovered new exit (range 5) 1770 | -10/Mines | Entered Exiles 1770 | -10/Exiles | Accompanied by 2 allies 1814 | -10/Exiles | Met 8R-AWN 1841 | -10/Exiles | Met EX-HEX 1896 | -10/Exiles | Met EX-BIN 1920 | -10/Exiles | Aligned with FarCom system 1922 | -10/Exiles | Given EX-Vault access code 1965 | -10/Exiles | Opened EX-Vault 1974 | -10/Exiles | Found Prototype Slashing Weapon 1974 | -10/Exiles | Identified Longsword +1 1982 | -10/Exiles | Found Prototype Ballistic Gun 1982 | -10/Exiles | Identified AWS/Gauss 1992 | -10/Exiles | Found Prototype Storage 1992 | -10/Exiles | Identified Superbattery 2090 | -10/Exiles | Warned to stay clear of 0b10 Research branches 2164 | -10/Exiles | Met EX-DEC 2245 | -10/Exiles | Discovered new exit (range 14) 2267 | -10/Exiles | Left Exiles lab with Longsword +1 2267 | -10/Exiles | Entered Mines 2267 | -9/Mines | Accompanied by 2 allies 2433 | -9/Mines | Discovered new exit (range 12) 2505 | -9/Mines | Learned location of Zion (-6) 2777 | -9/Mines | Entered Materials 2777 | -8/Materials | Accompanied by 2 allies 2777 | -8/Materials | Evolved 4 slots: Propulsion x2, Utility x2 3515 | -8/Materials | Repaired Hpw. Shotgun 3536 | -8/Materials | Build established: Hauler-Mutant 3605 | -8/Materials | Discovered new exit (range 16) 4208 | -8/Materials | Entered Factory 4208 | -7/Factory | Evolved 2 slots: Utility x1, Weapon x1 4363 | -7/Factory | Identified exit to Lower Caves 4657 | -7/Factory | Build established: Hauler-Skirmisher 5982 | -7/Factory | Fabricated Hcp. Storage Unit? 6461 | -7/Factory | Garrison activated, responded to threat 6491 | -7/Factory | Fabricated Imp. Treads? 6680 | -7/Factory | Lost 3 parts (1p2n) 7439 | -7/Factory | Identified Sensor Drone Bay 7459 | -7/Factory | Discovered new exit (range 9) 7548 | -7/Factory | Entered Lower Caves 7579 | -7/Lower Caves | Learned location of 1 exit from Factory 8008 | -7/Lower Caves | Discovered new exit (range 9) 8024 | -7/Lower Caves | Entered another Lower Caves area 8097 | -7/Lower Caves | Encountered a Warlord checkpoint 8458 | -7/Lower Caves | Discovered new exit (range 8) 8485 | -7/Lower Caves | Entered Data Miner 8487 | -7/Data Miner | Discovered new exit (range 6) 8521 | -7/Data Miner | Met Data Miner 8561 | -7/Data Miner | Learned location of Section 7 (-3) 8561 | -7/Data Miner | Acquired the access code to Warlord's prototype stash 8590 | -7/Data Miner | Received God Mode back door access code from Data Miner 8664 | -7/Data Miner | Entered Proximity Caves 8857 | -6/Proximity Caves | Spotted B-75 Beast 8859 | -6/Proximity Caves | Escorted by Enhanced Grunt 9133 | -6/Proximity Caves | Learned Factory terminal intel 9295 | -6/Proximity Caves | Discovered new exit (range 14) 9341 | -6/Proximity Caves | Entered Factory 9341 | -6/Factory | Accompanied by 1 ally 9341 | -6/Factory | Evolved 2 slots: Utility x2 9342 | -6/Factory | Identified exit to Lower Caves 9343 | -6/Factory | Loaded intel: 22 terminal locations 9415 | -6/Factory | Incoming investigation squad redirected 9554 | -6/Factory | Discovered new exit (range 8) 9577 | -6/Factory | Entered Extension 9577 | -6/Extension | Accompanied by 1 ally 9821 | -6/Extension | Rescued a captive Derelict 9822 | -6/Extension | Rescued a captive Derelict 10001 | -6/Extension | Rescued a captive Derelict 10001 | -6/Extension | Rescued a captive Derelict 10002 | -6/Extension | Central database locked down 10021 | -6/Extension | Rescued a captive Derelict 10021 | -6/Extension | Rescued a captive Derelict 10036 | -6/Extension | Rescued a captive Derelict 10050 | -6/Extension | Rescued a captive Derelict 10051 | -6/Extension | Rescued a captive Derelict 10310 | -6/Extension | Build established: Scavenger-Skirmisher 10469 | -6/Extension | Spotted B-75 Beast 10481 | -6/Extension | Allies destroyed B-75 Beast 10489 | -6/Extension | Spotted B-75 Beast 10500 | -6/Extension | Allies destroyed B-75 Beast 10683 | -6/Extension | Rescued a captive Derelict 10683 | -6/Extension | Rescued a captive Derelict 10696 | -6/Extension | Rescued a captive Derelict 10737 | -6/Extension | Rescued a captive Derelict 10747 | -6/Extension | Rescued a captive Derelict 10768 | -6/Extension | Rescued a captive Derelict 10788 | -6/Extension | Rescued A7 10917 | -6/Extension | Build established: Commander-Skirmisher 10936 | -6/Extension | Discovered new exit (range 10) 10938 | -6/Extension | Discovered new exit (range 6) 10987 | -6/Extension | Disrupted transfer network 10995 | -6/Extension | Entered Cetus 10995 | -6/Cetus | Accompanied by 18 allies 11000 | -6/Cetus | Acquired a Cetus Manufacturing Module code from A7 11019 | -6/Cetus | Spotted Cetus Guard 11019 | -6/Cetus | Spotted Cetus Guard 11022 | -6/Cetus | Spotted Cetus Guard 11025 | -6/Cetus | Spotted Cetus Guard 11028 | -6/Cetus | Allies destroyed Cetus Guard 11033 | -6/Cetus | Allies destroyed Cetus Guard 11038 | -6/Cetus | Allies destroyed Cetus Guard 11040 | -6/Cetus | Allies destroyed Cetus Guard 11077 | -6/Cetus | Cetus Manufacturing Module disabled 11119 | -6/Cetus | Failed to start Cetus Manufacturing Module 11203 | -6/Cetus | Escorted A7 to Cetus Mainframe 11225 | -6/Cetus | Discovered new exit (range 15) 11248 | -6/Cetus | Spotted Cetus Guard 11250 | -6/Cetus | Destroyed Cetus Guard 11250 | -6/Cetus | Destroyed Cetus Guard 11251 | -6/Cetus | Spotted Cetus Guard 11253 | -6/Cetus | Spotted Cetus Guard 11258 | -6/Cetus | Allies destroyed Cetus Guard 11261 | -6/Cetus | Allies destroyed Cetus Guard 11276 | -6/Cetus | Discovered new exit (range 15) 11304 | -6/Cetus | Met Revision 17 11331 | -6/Cetus | Build established: Scavenger-Skirmisher 11385 | -6/Cetus | Entered Archives 11385 | -6/Archives | Accompanied by 7 allies 11390 | -6/Archives | Received a hacking code to weaken MAIN.C 11455 | -6/Archives | Discovered new exit (range 15) 11513 | -6/Archives | Discovered new exit (range 15) 11550 | -6/Archives | Entered Hub_04(d) 11550 | -6/Hub_04(d) | Accompanied by 3 allies 11699 | -6/Hub_04(d) | Discovered new exit (range 14) 11824 | -6/Hub_04(d) | Network Hub disabled 11826 | -6/Hub_04(d) | Spotted Lightning 11836 | -6/Hub_04(d) | Spotted Lightning 11836 | -6/Hub_04(d) | Spotted Lightning 11837 | -6/Hub_04(d) | Spotted Lightning 11845 | -6/Hub_04(d) | Spotted Lightning 11847 | -6/Hub_04(d) | Spotted Lightning 11852 | -6/Hub_04(d) | Spotted Lightning 11852 | -6/Hub_04(d) | Entered Factory 11852 | -5/Factory | Evolved 2 slots: Utility x1, Weapon x1 12075 | -5/Factory | Discovered new exit (range 14) 12076 | -5/Factory | Garrison activated, responded to threat 12152 | -5/Factory | First assault squad dispatched 12528 | -5/Factory | Build established: Scavenger-Tank 12976 | -5/Factory | Build established: Scavenger-Skirmisher 13275 | -5/Factory | Identified exit to Upper Caves 13503 | -5/Factory | Fabricated System Restoration Module (x2) 13627 | -5/Factory | Entered Upper Caves 13628 | -5/Upper Caves | Encountered a Warlord checkpoint 14150 | -5/Upper Caves | Found Alien Artifact 14252 | -5/Upper Caves | Learned Factory terminal intel 14617 | -5/Upper Caves | Learned Factory interactive machine intel 14660 | -5/Upper Caves | Discovered new exit (range 21) 14720 | -5/Upper Caves | Attracted the attention of an 0b10 outpost 14780 | -5/Upper Caves | Destroyed 7 combat bots 14969 | -5/Upper Caves | Attracted the attention of an 0b10 checkpoint 14973 | -5/Upper Caves | Entered another Upper Caves area 14973 | -5/Upper Caves | Accompanied by 2 allies 14990 | -5/Upper Caves | Discovered new exit (range 18) 15480 | -5/Upper Caves | Discovered new exit (range 24) 15589 | -5/Upper Caves | Entered Zhirov 15589 | -5/Zhirov | Discovered new exit (range 3) 15618 | -5/Zhirov | Met Zhirov 15647 | -5/Zhirov | Learned location of Quarantine (-3) 15647 | -5/Zhirov | Learned location of Testing (-2) 15647 | -5/Zhirov | Learned location of Command (-1) 15671 | -5/Zhirov | Zhirov requested help retrieving the SGEMP Prototype 15708 | -5/Zhirov | Found Alien Artifact 15709 | -5/Zhirov | Identified Integrated Dissipator 15709 | -5/Zhirov | Installed Integrated Dissipator, increased core heat dissipation (+20) 15733 | -5/Zhirov | Found Alien Artifact 15931 | -5/Zhirov | Entered Proximity Caves 16228 | -4/Proximity Caves | Learned Research security intel 16541 | -4/Proximity Caves | Spotted B-86 Titan 16604 | -4/Proximity Caves | Discovered new exit (range 21) 16742 | -4/Proximity Caves | Lost 6 parts (2n1u3w) 16839 | -4/Proximity Caves | Entered Factory 16839 | -4/Factory | Evolved 2 slots: Propulsion x2 16840 | -4/Factory | Loaded intel: 45 interactive machine locations 16841 | -4/Factory | Loaded intel: 19 terminal locations 17319 | -4/Factory | Identified exit to Upper Caves 17465 | -4/Factory | Fabricated X-72 Disruptor? 17505 | -4/Factory | Fabricated Hcp. Storage Unit (x1) 17600 | -4/Factory | Fabricated P-70 Sage? 17660 | -4/Factory | Entered Upper Caves 17660 | -4/Upper Caves | Accompanied by 4 allies 17666 | -4/Upper Caves | Learned location of 1 exit from Proximity Caves 17774 | -4/Upper Caves | Sage 7b assimilated hostile G-67 Veteran 18010 | -4/Upper Caves | Discovered new exit (range 16) 18052 | -4/Upper Caves | Build established: Commander-Tank 18063 | -4/Upper Caves | Entered another Upper Caves area 18063 | -4/Upper Caves | Accompanied by 5 allies 18065 | -4/Upper Caves | Discovered new exit (range 14) 18155 | -4/Upper Caves | Attracted the attention of an 0b10 checkpoint 18232 | -4/Upper Caves | Sage 7b assimilated hostile S-27 Virus 18416 | -4/Upper Caves | Learned Research stockpile data 18537 | -4/Upper Caves | Build established: Hacker-Skirmisher 18588 | -4/Upper Caves | Attracted the attention of an 0b10 outpost 18651 | -4/Upper Caves | Destroyed 7 combat bots 18917 | -4/Upper Caves | Discovered new exit (range 17) 18981 | -4/Upper Caves | Entered Warlord 19022 | -4/Warlord | Discovered new exit (range 23) 19034 | -4/Warlord | System corruption cleaned by Quarantine Array 19175 | -4/Warlord | Met Warlord 19194 | -4/Warlord | Opened Warlord's prototype stash 19200 | -4/Warlord | Warlord's base attacked by MAIN.C 19202 | -4/Warlord | Found Prototype Reactor 19206 | -4/Warlord | Found Prototype Processor 19206 | -4/Warlord | Identified Exp. Targeting Computer 19217 | -4/Warlord | Found Prototype Hackware 19256 | -4/Warlord | Build established: Scavenger-Skirmisher 19489 | -4/Warlord | Opened side exit 19528 | -4/Warlord | Spotted Executioner 19534 | -4/Warlord | Spotted Striker 19538 | -4/Warlord | Spotted Striker 19550 | -4/Warlord | Warlord forces counterattacked 19596 | -4/Warlord | Lost 6 parts (1p4n1w) 19731 | -4/Warlord | P-70 Sage assimilated allied 5B-CFF(g) 19736 | -4/Warlord | Spotted Striker 19738 | -4/Warlord | Spotted Executioner 19741 | -4/Warlord | Spotted B-90 Cyclops 19765 | -4/Warlord | Entered Proximity Caves 19766 | -3/Proximity Caves | Identified exit to Research 20023 | -3/Proximity Caves | Core integrity fell below 50% 20056 | -3/Proximity Caves | Lost 3 parts (3w) 20233 | -3/Proximity Caves | Entered Research 20233 | -3/Research | Evolved 2 slots: Power x1, Utility x1 20237 | -3/Research | Identified Vortex Chain Reactor 20428 | -3/Research | Found Adv. Powered Armor 20432 | -3/Research | Found Adv. Powered Armor 20764 | -3/Research | Lost 3 parts (2u1w) 21039 | -3/Research | Build established: Scavenger-Tank 21047 | -3/Research | Identified System Mapper 21048 | -3/Research | Identified exit to Research 21113 | -3/Research | Found Fusion Bomb Launcher 21121 | -3/Research | Found Prototype Device 21121 | -3/Research | Identified Exp. Thermal Shield 21291 | -3/Research | System corruption reached 10% 21337 | -3/Research | Lost 3 parts (3n) 21597 | -3/Research | Found Exp. Thermal Shield 21671 | -3/Research | Entered another Research area 21671 | -2/Research | Warlord forces began assault on 0b10 21671 | -2/Research | Evolved 2 slots: Utility x2 21701 | -2/Research | Discovered new exit (range 13) 21781 | -2/Research | Research machine network offline 21945 | -2/Research | Borebot progress halted 21958 | -2/Research | Borebot progress halted 21972 | -2/Research | Borebot progress halted 22024 | -2/Research | Borebot progress halted 22031 | -2/Research | Borebot progress halted 22109 | -2/Research | Identified exit to Testing 22573 | -2/Research | Discovered new exit (range 68) 22575 | -2/Research | Discovered exit to Testing (range 58) 22591 | -2/Research | Identified exit to Access 22617 | -2/Research | Met up with Warlord 22753 | -2/Research | Entered Access 22753 | -1/Access | Evolved 2 slots: Propulsion x2 22812 | -1/Access | Build established: Hacker-Tank 23629 | -1/Access | Destroyed 7 combat bots 24130 | -1/Access | Destroyed 11 combat bots 24406 | -1/Access | Build established: Hacker-Gunner 24755 | -1/Access | Garrison activated, responded to threat 24822 | -1/Access | Crushed by falling debris 24898 | -1/Access | Discovered new exit (range 7) 25128 | -1/Access | Entered Command 25151 | -1/Command | Identified exit to Surface 25162 | -1/Command | Disengaged cave seal 25289 | -1/Command | Spotted B-99 Colossus 25294 | -1/Command | Allies destroyed B-99 Colossus 25378 | -1/Command | First assault squad dispatched 25406 | -1/Command | Incoming assault squad redirected 25523 | -1/Command | Destroyed 7 combat bots 25651 | -1/Command | Spotted Combat Programmer 25655 | -1/Command | Spotted M Guard 25663 | -1/Command | Spotted Combat Programmer 25667 | -1/Command | Identified Dimensional Node Initializer 25667 | -1/Command | Initialized slip node 25667 | -1/Command | Spotted M Guard 25682 | -1/Command | System corruption reached 10% 25708 | -1/Command | System corruption reached 30% 25720 | -1/Command | Identified Transdimensional Reconstructor 25720 | -1/Command | Failed to warp due to unstable space 25750 | -1/Command | Core integrity fell below 50% 25765 | -1/Command | Met MAIN.C 25768 | -1/Command | 0b10 Conduit disabled 25771 | -1/Command | Hacked MAIN.C using A7's code 25779 | -1/Command | Lost 30 parts (3p9n8u10w) 25786 | -1/Command | Core integrity fell below 20% 25798 | -1/Command | Destroyed by Combat Programmer with EMDS Last Messages --------------- 25772_ System corrupted: Heat flow error (+123). 25772_ MAIN.C reaction time slowed by virus. 25773_ MAIN.C: "What did you do to me?!" 25773_ System corrupted: Longsword +1 targeting data glitched. 25773_ MAIN.C reaction time slowed by virus. 25776_ System corrupted: Longsword +1 targeting data glitched. 25776_ Penetrated by EMDS Slug. 25778_ System corrupted: Longsword +1 targeting data glitched. 25779_ MAIN.C reaction time slowed by virus. 25781_ System Mapper destroyed. 25781_ Longsword +1 destroyed. 25784_ MAIN.C reaction time slowed by virus. 25785_ EMDS Slug penetrates 0b10 Conduit. 25789_ MAIN.C reaction time slowed by virus. 25790_ Penetrated by EMDS Slug. 25791_ K#<:OB<0KYG=MBQIGG8GG>AXX4TY 25791_ MAIN.C reaction time slowed by virus. 25794_ Penetrated by EMDS Slug. 25795_ MAIN.C reaction time slowed by virus. 25798_ Penetrated by EMDS Slug. Map ----- +----------------------------------------------------+ | ?????????????????????????????????????????????????? | | ?????????????????????????????????????????????????? | | ?????????????????????????????????????????????????? | | ?????????????????????????????????????????????????? | | ?????????????????????????????????????????????????? | | ?????????????????????????????????????????????????? | | ?????????????????????????????????????????????????? | | ?????????????????????????????????????????????????? | | ?????????????????????????????????????????????????? | | ??????????????????????????????????#############??? | | ????????????????????????????????? """" #??? | | ????????????????????????????????? "" #??? | | ???????????????????????????????? "" #### | | ?????????????????????????""""??""""" + | | ?????????????????????????? "? """ + | | ?????????????????????????"" """""" + | | ????????????????????????#"" """""" #### | | ????????????????????????# " """""" p #??? | | ????????????????????????# " "" #??? | | ????????????????????????# " "MMM ""#??? | | ????????????????????????#"""""""""MMM """"""#??? | | ????????????????????????#"" MMM """"""""#??? | | ????????????????????????# " """""""""#??? | | ????????????????????????# p " " " #??? | | ????????????????????????# " " " " #??? | | ????????????????????????"@ " " " """" " ???? | | ????????????????????????" "" " " """" ???? | | ????????????????????????" " " " "? ???? | | ????????????????????????# """"""""" " ?????? | | ????????????????????????# " """ " """"""?????? | | ????????????????????????# """ " " " ?????? | | ????????????????????????###############?##???????? | | ?????????????????????????????????????????????????? | | ?????????????????????????????????????????????????? | | ?????????????????????????????????????????????????? | | ?????????????????????????????????????????????????? | | ?????????????????????????????????????????????????? | | ????